fUSD/lending_fUSD_20260424
["ID","MTS","AMOUNT","RATE_DAILY","PERIOD"]
[421086022,1777005060100,-300.0,0.00016438,3]
[421086023,1777005060112,-300.0,0.00016438,3]
[421086024,1777005060123,-151.0,0.00016438,2]
[421086025,1777005060136,-151.0,0.00016438,2]
[421086026,1777005060148,-151.0,0.00016438,2]
[421086027,1777005060160,-151.0,0.00016438,2]
[421086028,1777005060171,-151.0,0.00016438,2]
[421086029,1777005060182,-151.0,0.00016438,2]
[421086030,1777005060194,-151.0,0.00016438,2]
[421086031,1777005060205,-151.0,0.00016438,2]
[421086032,1777005060216,-151.0,0.00016438,2]
[421086033,1777005060228,-151.0,0.00016438,2]
[421086034,1777005060239,-151.0,0.00016438,2]
[421086035,1777005060254,-151.0,0.00016438,2]
[421086036,1777005060266,-250.967228,0.00016438,2]
[421086037,1777005060277,-151.0,0.00016438,2]
[421086038,1777005060288,-250.967228,0.00016438,2]
[421086039,1777005060300,-151.0,0.00016438,2]
[421086040,1777005060311,-250.967228,0.00016438,2]
[421086041,1777005060322,-151.0,0.00016438,2]
[421086042,1777005060333,-250.967228,0.00016438,2]
[421086043,1777005060345,-250.967228,0.00016438,2]
[421086044,1777005060356,-151.0,0.00016438,2]
[421086045,1777005060368,-151.0,0.00016438,2]
[421086046,1777005060380,-250.967228,0.00016438,2]
[421086047,1777005060391,-151.0,0.00016438,2]
[421086048,1777005060402,-250.967228,0.00016438,2]
[421086049,1777005060414,-151.0,0.00016438,2]
[421086050,1777005060425,-250.967228,0.00016438,2]
[421086051,1777005060436,-151.0,0.00016438,2]
[421086052,1777005060448,-250.967228,0.00016438,2]
[421086053,1777005060459,-151.0,0.00016438,2]
[421086054,1777005060473,-250.967228,0.00016438,2]
[421086055,1777005060484,-151.0,0.00016438,2]
[421086056,1777005060495,-250.967228,0.00016438,2]
[421086057,1777005060507,-151.0,0.00016438,2]
[421086058,1777005060518,-250.967228,0.00016438,2]
[421086059,1777005060529,-151.0,0.00016438,2]
[421086060,1777005060540,-250.967228,0.00016438,2]
[421086061,1777005060551,-250.967228,0.00016438,2]
[421086062,1777005060563,-151.0,0.00016438,2]
[421086063,1777005060573,-250.967228,0.00016438,2]
[421086064,1777005060585,-151.0,0.00016438,2]
[421086065,1777005060596,-250.967228,0.00016438,2]
[421086066,1777005060609,-151.0,0.00016438,2]
[421086067,1777005060620,-250.967228,0.00016438,2]
[421086068,1777005060631,-151.0,0.00016438,2]
[421086069,1777005060643,-250.967228,0.00016438,2]
[421086070,1777005060654,-151.0,0.00016438,2]
[421086071,1777005060665,-250.967228,0.00016438,2]
[421086072,1777005060677,-151.0,0.00016438,2]
[421086073,1777005060688,-250.967224,0.00016438,2]
[421086074,1777005060702,-151.0,0.00016438,2]
[421086075,1777005060714,-151.0,0.00016438,2]
[421086076,1777005060725,-151.0,0.00016438,2]
[421086077,1777005060736,-151.0,0.00016438,2]
[421086078,1777005060747,-151.0,0.00016438,2]
[421086079,1777005060758,-151.0,0.00016438,2]
[421086080,1777005060770,-151.0,0.00016438,2]
[421086081,1777005060781,-151.0,0.00016438,2]
[421086082,1777005060792,-231.042861,0.00016438,2]
[421086083,1777005060804,-152.0,0.00016438,2]
[421086084,1777005060815,-152.0,0.00016438,2]
[421086085,1777005060827,-152.0,0.00016438,2]
[421086086,1777005060838,-185.15,0.000165,2]
[421086087,1777005060850,-185.15,0.000165,2]
[421086088,1777005060862,-428.43322755,0.000165,30]
[421086089,1777005060874,-263.3,0.000165,2]
[421086090,1777005061791,-200.0,0.000165,2]
[421086091,1777005061813,-200.0,0.000165,2]
[421086092,1777005061839,-200.0,0.000165,2]
[421086093,1777005061859,-200.0,0.000165,2]
[421086094,1777005061869,-343.39379463,0.00016576,2]
[421086095,1777005061878,-1117.0,0.0001659,2]
[421086096,1777005061888,-804.17102365,0.00016607,2]
[421086097,1777005061897,-644.79446246,0.0001661,2]
[421086098,1777005061906,-2818.0,0.0001665,2]
[421086099,1777005061917,-200.0,0.00016665,2]
[421086100,1777005061927,-200.0,0.00016665,2]
[421086101,1777005061936,-200.0,0.00016665,2]
[421086102,1777005061945,-200.0,0.00016665,2]
[421086103,1777005061955,-5775.5,0.00016712,2]
[421086104,1777005061964,-478.0,0.00016805,2]
[421086105,1777005061973,-638.38,0.00016808,2]
[421086106,1777005061985,-477.74,0.00016808,2]
[421086107,1777005061995,-183.4,0.00016808,2]
[421086108,1777005062005,-478.0,0.00016808,2]
[421086109,1777005062015,-567.7,0.00016808,2]
[421086110,1777005062026,-183.4,0.00016808,2]
[421086111,1777005062036,-478.0,0.00016808,2]
[421086112,1777005062046,-478.0,0.00016808,2]
[421086113,1777005062057,-568.19,0.00016808,2]
[421086114,1777005062066,-392.67,0.00016808,2]
[421086115,1777005062078,-280.0,0.00016809,2]
[421086116,1777005062088,-478.0,0.00016812,2]
[421086117,1777005062098,-638.3,0.00016813,2]
[421086118,1777005062107,-200.0,0.00016832,2]
[421086119,1777005062117,-200.0,0.00016832,2]
[421086120,1777005062126,-200.0,0.00016832,2]
[421086121,1777005062135,-200.0,0.00016832,2]
[421086122,1777005062149,-2360.0,0.00016967,2]
[421086123,1777005062158,-666.0,0.00016967,2]
[421086124,1777005062168,-571.0,0.00016967,2]
[421086125,1777005062177,-5872.0,0.00016967,2]
[421086126,1777005062187,-681.0,0.00016967,2]
[421086127,1777005062197,-256.0,0.00016967,2]
[421086128,1777005062207,-951.0,0.00016967,2]
[421086129,1777005062217,-1923.0,0.00016967,2]
[421086130,1777005062226,-1999.0,0.00016967,2]
[421086131,1777005062236,-1750.18,0.00016985,2]
[421086132,1777005062246,-1750.18,0.00016985,2]
[421086133,1777005062256,-1750.18,0.00016985,2]
[421086134,1777005062266,-1750.18,0.00016985,2]
[421086135,1777005062276,-1750.218324,0.00016985,2]
[421086136,1777005062286,-1264.98,0.00016985,2]
[421086137,1777005062295,-1264.98,0.00016985,2]
[421086138,1777005062305,-1264.98,0.00016985,2]
[421086139,1777005062315,-1264.98,0.00016985,2]
[421086140,1777005062325,-1265.19323221,0.00016985,2]
[421086141,1777005062336,-698.23,0.00016985,2]
[421086142,1777005062345,-698.23,0.00016985,2]
[421086143,1777005062356,-698.23,0.00016985,2]
[421086144,1777005062365,-698.23,0.00016985,2]
[421086145,1777005062374,-698.45577226,0.00016985,2]
[421086146,1777005062384,-5775.5,0.00016986,2]
[421086147,1777005062394,-1000.0,0.00016986,2]
[421086148,1777005062405,-1457.77874653,0.00016989,2]
[421086149,1777005062415,-200.0,0.00017,2]
[421086150,1777005062424,-200.0,0.00017,2]
[421086151,1777005062434,-200.0,0.00017,2]
[421086152,1777005062444,-200.0,0.00017,2]
[421086153,1777005062455,-350.0,0.00017,2]
[421086154,1777005062465,-200.0,0.0001717,2]
[421086155,1777005062474,-200.0,0.0001717,2]
[421086156,1777005062484,-200.0,0.0001717,2]
[421086157,1777005062493,-200.0,0.0001717,2]
[421086158,1777005062503,-5775.5,0.0001726,2]
[421086159,1777005062512,-13569.85579805,0.00017336,2]
[421086160,1777005062522,-1117.0,0.00017464,2]
[421086161,1777005062532,-503.0,0.0001749,5]
[421086162,1777005062542,-158.0,0.00017498,3]
[421086163,1777005062551,-335.21238477,0.000175,2]
[421086164,1777005062561,-5775.5,0.00017534,2]
[421086165,1777005062570,-1500.0,0.00017534,2]
[421086166,1777005062579,-150.0,0.00017558,2]
[421086167,1777005062592,-151.26,0.00017619,2]
[421086168,1777005062601,-151.0,0.00017619,2]
[421086169,1777005062611,-151.09,0.0001762,2]
[421086170,1777005062621,-151.0,0.0001762,2]
[421086171,1777005062630,-271.91,0.00017627,2]
[421086172,1777005062640,-478.0,0.0001763,2]
[421086173,1777005062649,-477.51,0.00017634,2]
[421086174,1777005062659,-1266.0,0.00017699,2]
[421086175,1777005062668,-1219.0,0.00017699,2]
[421086176,1777005062678,-927.0,0.00017699,2]
[421086177,1777005062687,-1349.0,0.00017699,2]
[421086178,1777005062697,-6032.0,0.00017699,2]
[421086179,1777005062706,-1200.0,0.00017732,7]
[421086180,1777005062715,-2900.0,0.00017732,7]
[421086181,1777005062724,-5775.5,0.00017808,2]
[421086182,1777005062734,-250.0,0.00017854,2]
[421086183,1777005062743,-185.15,0.0001787,2]
[421086184,1777005062753,-185.15,0.0001787,2]
[421086185,1777005062762,-2360.0,0.00017967,2]
[421086186,1777005062772,-666.0,0.00017967,2]
[421086187,1777005062783,-571.0,0.00017967,2]
[421086188,1777005062794,-5872.0,0.00017967,2]
[421086189,1777005062804,-681.0,0.00017967,2]
[421086190,1777005062813,-256.0,0.00017967,2]
[421086191,1777005062823,-951.0,0.00017967,2]
[421086192,1777005062833,-1923.0,0.00017967,2]
[421086193,1777005062843,-1999.0,0.00017967,2]
[421086194,1777005062852,-200.0,0.00018,2]
[421086195,1777005062862,-5775.5,0.00018082,2]
[421086196,1777005062871,-1896.86407999,0.00018082,2]
[421086197,1777005062881,-5775.5,0.00018356,2]
[421086198,1777005062890,-1117.0,0.00018383,2]
[421086199,1777005062900,-2628.62645023,0.00018395,37]
[421086200,1777005062909,-568.19,0.00018439,2]
[421086201,1777005062919,-477.86,0.00018441,2]
[421086202,1777005062929,-568.19,0.00018442,2]
[421086203,1777005062939,-334.37,0.00018456,2]
[421086204,1777005062948,-5775.5,0.0001863,2]
[421086205,1777005062958,-214.0,0.00018641,2]
[421086206,1777005062968,-503.0,0.0001882,6]
[421086207,1777005062977,-500.0,0.00018828,7]
[421086208,1777005062986,-251.0,0.00018847,2]
[421086209,1777005062995,-5775.5,0.00018904,2]
[421086210,1777005063005,-229.63304842,0.0001896,2]
[421086211,1777005063014,-2360.70153168,0.00018967,2]
[421086212,1777005063026,-666.96331207,0.00018967,2]
[421086213,1777005063039,-576.98398377,0.00018967,2]
[421086214,1777005063049,-5891.44707913,0.00018967,2]
[421086215,1777005063058,-699.0651877,0.00018967,2]
[421086216,1777005063068,-273.51970137,0.00018967,2]
[421086217,1777005063077,-963.25859059,0.00018967,2]
[421086218,1777005063087,-1924.84184338,0.00018967,2]
[421086219,1777005063096,-2010.69669213,0.00018967,2]
[421086220,1777005063106,-180.13,0.00019,2]
[421086221,1777005063116,-400.0,0.00019,2]
[421086222,1777005063126,-323.0,0.00019046,2]
[421086223,1777005063137,-10000.0,0.000191,2]
[421086224,1777005063147,-10000.0,0.000191,2]
[421086225,1777005063157,-10040.0,0.000191,2]
[421086226,1777005063167,-500.0,0.00019176,2]
[421086227,1777005063177,-560.71839662,0.00019178,2]
[421086228,1777005063186,-5775.5,0.00019178,2]
[421086229,1777005063197,-250.0,0.00019178,2]
[421086230,1777005063206,-250.0,0.00019178,2]
[421086231,1777005063216,-250.0,0.00019178,2]
[421086232,1777005063226,-258.31293885,0.00019178,2]
[421086233,1777005063236,-500.0,0.00019178,30]
[421086234,1777005063246,-500.0,0.00019178,30]
[421086235,1777005063255,-500.0,0.00019178,30]
[421086236,1777005063265,-500.26376587,0.00019178,30]
[421086237,1777005063274,-150.0,0.00019178,2]
[421086238,1777005063284,-150.0,0.00019178,2]
[421086239,1777005063294,-150.0,0.00019178,2]
[421086240,1777005063304,-185.65064076,0.00019178,2]
[421086241,1777005063314,-500.0,0.00019178,2]
[421086242,1777005063323,-500.0,0.00019178,2]
[421086243,1777005063333,-500.0,0.00019178,2]
[421086244,1777005063343,-500.0,0.00019178,2]
[421086245,1777005063352,-500.0,0.00019178,2]
[421086246,1777005063362,-500.0,0.00019178,2]
[421086247,1777005063372,-500.0,0.00019178,2]
[421086248,1777005063381,-500.0,0.00019178,2]
[421086249,1777005063391,-500.0,0.00019178,2]
[421086250,1777005063400,-454.93809321,0.00019178,2]
[421086251,1777005063409,-244.412133,0.00019178,2]
[421086252,1777005063419,-244.412133,0.00019178,2]
[421086253,1777005063429,-244.412133,0.00019178,2]
[421086254,1777005063438,-244.412133,0.00019178,2]
[421086255,1777005063448,-244.412133,0.00019178,2]
[421086256,1777005063457,-244.412133,0.00019178,2]
[421086257,1777005063467,-244.412133,0.00019178,2]
[421086258,1777005063476,-244.412133,0.00019178,2]
[421086259,1777005063486,-244.412133,0.00019178,2]
[421086260,1777005063496,-244.412133,0.00019178,2]
[421086261,1777005063504,-244.412133,0.00019178,2]
[421086262,1777005063513,-244.412133,0.00019178,2]
[421086263,1777005063523,-244.412133,0.00019178,2]
[421086264,1777005063532,-244.412133,0.00019178,2]
[421086265,1777005063541,-244.412133,0.00019178,2]
[421086266,1777005063551,-244.412133,0.00019178,2]
[421086267,1777005063560,-244.412133,0.00019178,2]
[421086268,1777005063569,-244.412133,0.00019178,2]
[421086269,1777005063579,-244.412133,0.00019178,2]
[421086270,1777005063590,-244.412131,0.00019178,2]
[421086271,1777005063599,-315.842369,0.00019178,2]
[421086272,1777005063609,-315.842369,0.00019178,2]
[421086273,1777005063619,-315.842369,0.00019178,2]
[421086274,1777005063628,-315.842369,0.00019178,2]
[421086275,1777005063637,-315.842369,0.00019178,2]
[421086276,1777005063647,-315.842369,0.00019178,2]
[421086277,1777005063656,-315.842369,0.00019178,2]
[421086278,1777005063666,-315.842369,0.00019178,2]
[421086279,1777005063676,-315.842369,0.00019178,2]
[421086280,1777005063687,-315.842369,0.00019178,2]
[421086281,1777005063697,-315.842369,0.00019178,2]
[421086282,1777005063706,-315.842369,0.00019178,2]
[421086283,1777005063716,-315.842369,0.00019178,2]
[421086284,1777005063726,-315.842369,0.00019178,2]
[421086285,1777005063736,-315.842369,0.00019178,2]
[421086286,1777005063747,-315.842369,0.00019178,2]
[421086287,1777005063759,-315.842369,0.00019178,2]
[421086288,1777005063769,-315.842369,0.00019178,2]
[421086289,1777005063781,-315.842369,0.00019178,2]
[421086290,1777005063791,-315.842364,0.00019178,2]
[421086291,1777005063801,-869.495192,0.00019178,2]
[421086292,1777005063811,-869.495192,0.00019178,2]
[421086293,1777005063820,-869.495192,0.00019178,2]
[421086294,1777005063830,-869.495192,0.00019178,2]
[421086295,1777005063840,-869.495192,0.00019178,2]
[421086296,1777005063851,-869.495192,0.00019178,2]
[421086297,1777005063861,-869.495192,0.00019178,2]
[421086298,1777005063871,-869.495192,0.00019178,2]
[421086299,1777005063881,-869.495192,0.00019178,2]
[421086300,1777005063890,-869.495192,0.00019178,2]
[421086301,1777005063899,-869.495192,0.00019178,2]
[421086302,1777005063909,-869.495192,0.00019178,2]
[421086303,1777005063918,-869.495192,0.00019178,2]
[421086304,1777005063929,-869.495192,0.00019178,2]
[421086305,1777005063940,-869.495192,0.00019178,2]
[421086306,1777005063950,-869.495192,0.00019178,2]
[421086307,1777005063960,-869.495192,0.00019178,2]
[421086308,1777005063970,-869.495192,0.00019178,2]
[421086309,1777005063980,-869.495192,0.00019178,2]
[421086310,1777005063991,-869.495194,0.00019178,2]
[421086311,1777005064000,-151.0,0.00019178,3]
[421086312,1777005064010,-264.044531,0.00019178,3]
[421086313,1777005064020,-150.0,0.00019178,2]
[421086314,1777005064029,-150.0,0.00019178,2]
[421086315,1777005064039,-400.13,0.000192,2]
[421086316,1777005064050,-151.0,0.00019264,2]
[421086317,1777005064061,-637.73,0.00019266,2]
[421086318,1777005064072,-833.92535153,0.00019346,2]
[421086319,1777005064082,-668.65185757,0.00019349,2]
[421086320,1777005064091,-1117.0,0.0001935,2]
[421086321,1777005064100,-794.5,0.00019405,2]
[421086322,1777005064110,-5775.5,0.00019452,2]
[421086323,1777005064119,-5800.0,0.00019518,2]
[421086324,1777005064129,-5800.0,0.00019526,2]
[421086325,1777005064139,-5800.0,0.00019535,2]
[421086326,1777005064149,-5800.0,0.00019543,2]
[421086327,1777005064158,-5800.0,0.00019552,2]
[421086328,1777005064168,-5800.0,0.00019552,2]
[421086329,1777005064178,-5800.0,0.0001956,2]
[421086330,1777005064217,-5800.0,0.0001956,2]
[421086331,1777005064227,-5800.0,0.00019569,2]
[421086332,1777005064236,-5800.0,0.00019569,2]
[421086333,1777005064245,-5800.0,0.00019569,2]
[421086334,1777005064254,-5800.0,0.00019569,2]
[421086335,1777005064263,-250.0,0.00019726,2]
[421086336,1777005064273,-250.0,0.00019726,2]
[421086337,1777005064282,-2000.0,0.000198,6]
[421086338,1777005064291,-2000.0,0.000198,7]
[421086339,1777005064300,-2000.0,0.000198,10]
[421086340,1777005064309,-1200.0,0.00019924,7]
[421086341,1777005064318,-2900.0,0.00019924,7]
[421086342,1777005064328,-250.0,0.00019998,2]
[421086343,1777005064337,-920.0,0.0002,2]
[421086344,1777005064346,-162.24500663,0.0002,7]
[421086345,1777005064355,-160.0,0.0002,7]
[421086346,1777005064365,-825.0,0.0002,30]
[421086347,1777005064374,-150.0,0.0002,2]
[421086348,1777005064383,-150.0,0.0002,2]
[421086349,1777005064392,-173.54323635,0.0002,2]
[421086350,1777005064401,-200.0,0.0002,10]
[421086351,1777005064410,-192.86,0.0002,2]
[421086352,1777005064419,-192.86,0.0002,2]
[421086353,1777005064428,-200.0,0.0002,2]
[421086354,1777005064437,-153.30922474,0.0002,20]
[421086355,1777005064446,-905.0,0.0002,2]
[421086356,1777005064455,-2000.0,0.000201,2]
[421086357,1777005064465,-300.0,0.000201,10]
[421086358,1777005064474,-460.93801569,0.00020117,2]
[421086359,1777005064484,-503.0,0.0002015,7]
[421086360,1777005064493,-314.94773377,0.00020158,7]
[421086361,1777005064502,-350.0,0.00020274,2]
[421086362,1777005064511,-350.0,0.00020274,2]
[421086363,1777005064520,-1117.0,0.00020369,2]
[421086364,1777005064530,-151.0,0.00020422,2]
[421086365,1777005064539,-151.0,0.00020422,2]
[421086366,1777005064550,-151.0,0.00020422,2]
[421086367,1777005064560,-187.987978,0.00020422,2]
[421086368,1777005064569,-3624.01,0.00020548,2]
[421086369,1777005064578,-3624.01,0.00020548,2]
[421086370,1777005064587,-3624.01,0.00020548,2]
[421086371,1777005064597,-1266.0,0.00020699,2]
[421086372,1777005064606,-1219.0,0.00020699,2]
[421086373,1777005064616,-927.0,0.00020699,2]
[421086374,1777005064625,-1349.0,0.00020699,2]
[421086375,1777005064634,-6032.0,0.00020699,2]
[421086376,1777005064643,-450.0,0.00020822,2]
[421086377,1777005064653,-450.0,0.00020822,2]
[421086378,1777005064663,-6101.1156579,0.000209,30]
[421086379,1777005064672,-392.67,0.00020907,2]
[421086380,1777005064681,-392.61,0.00020907,2]
[421086381,1777005064690,-567.16,0.00020911,2]
[421086382,1777005064700,-570.35,0.00020911,2]
[421086383,1777005064709,-570.47,0.00020911,2]
[421086384,1777005064718,-151.0,0.00020913,2]
[421086385,1777005064728,-568.42,0.00020913,2]
[421086386,1777005064737,-570.44,0.00020913,2]
[421086387,1777005064747,-570.12,0.00020913,2]
[421086388,1777005064756,-568.13,0.00020913,2]
[421086389,1777005064766,-638.07,0.00020913,2]
[421086390,1777005064776,-183.41,0.00020913,2]
[421086391,1777005064785,-300.32792946,0.0002097,2]
[421086392,1777005064796,-400.0,0.0002097,2]
[421086393,1777005064806,-832.21,0.00021,3]
[421086394,1777005064817,-450.0,0.00021,2]
[421086395,1777005064827,-500.0,0.0002102,7]
[421086396,1777005064837,-460.93801569,0.00021057,2]
[421086397,1777005064847,-436.64,0.000211,10]
[421086398,1777005064856,-550.0,0.0002137,2]
[421086399,1777005064866,-550.0,0.0002137,2]
[421086400,1777005064877,-1117.0,0.00021441,2]
[421086401,1777005064888,-503.0,0.0002148,8]
[421086402,1777005064898,-3009.4,0.0002171,2]
[421086403,1777005064907,-183.36,0.00021735,2]
[421086404,1777005064918,-638.38,0.00021735,2]
[421086405,1777005064927,-183.4,0.00021735,2]
[421086406,1777005064937,-570.27,0.00021735,2]
[421086407,1777005064947,-477.86,0.00021735,2]
[421086408,1777005064957,-477.92,0.00021741,2]
[421086409,1777005064966,-183.38,0.00021741,2]
[421086410,1777005064976,-13569.85579805,0.00021856,2]
[421086411,1777005064985,-500.0,0.00021915,2]
[421086412,1777005064996,-250.0,0.00021918,2]
[421086413,1777005065006,-250.0,0.00021918,2]
[421086414,1777005065017,-250.0,0.00021918,2]
[421086415,1777005065027,-250.0,0.00021918,2]
[421086416,1777005065036,-250.0,0.00021918,2]
[421086417,1777005065046,-250.0,0.00021918,2]
[421086418,1777005065056,-250.0,0.00021918,2]
[421086419,1777005065066,-250.0,0.00021918,2]
[421086420,1777005065075,-250.0,0.00021918,2]
[421086421,1777005065085,-250.0,0.00021918,2]
[421086422,1777005065095,-250.0,0.00021918,2]
[421086423,1777005065105,-250.0,0.00021918,2]
[421086424,1777005065115,-250.0,0.00021918,2]
[421086425,1777005065125,-250.0,0.00021918,2]
[421086426,1777005065136,-250.0,0.00021918,2]
[421086427,1777005065145,-250.0,0.00021918,2]
[421086428,1777005065155,-250.0,0.00021918,2]
[421086429,1777005065165,-250.0,0.00021918,2]
[421086430,1777005065174,-250.0,0.00021918,2]
[421086431,1777005065184,-250.0,0.00021918,2]
[421086432,1777005065194,-300.376853,0.00021918,2]
[421086433,1777005065203,-300.376853,0.00021918,2]
[421086434,1777005065213,-300.376853,0.00021918,2]
[421086435,1777005065222,-300.376853,0.00021918,2]
[421086436,1777005065232,-300.376853,0.00021918,2]
[421086437,1777005065241,-300.376853,0.00021918,2]
[421086438,1777005065251,-300.376853,0.00021918,2]
[421086439,1777005065260,-300.376853,0.00021918,2]
[421086440,1777005065270,-300.376853,0.00021918,2]
[421086441,1777005065279,-300.376853,0.00021918,2]
[421086442,1777005065289,-300.376853,0.00021918,2]
[421086443,1777005065299,-300.376853,0.00021918,2]
[421086444,1777005065309,-300.376853,0.00021918,2]
[421086445,1777005065320,-300.376853,0.00021918,2]
[421086446,1777005065331,-300.376853,0.00021918,2]
[421086447,1777005065340,-300.376853,0.00021918,2]
[421086448,1777005065350,-300.376853,0.00021918,2]
[421086449,1777005065360,-300.376853,0.00021918,2]
[421086450,1777005065371,-300.376853,0.00021918,2]
[421086451,1777005065381,-300.376858,0.00021918,2]
[421086452,1777005065392,-151.0,0.00021918,2]
[421086453,1777005065402,-151.0,0.00021918,2]
[421086454,1777005065412,-151.0,0.00021918,2]
[421086455,1777005065423,-151.0,0.00021918,2]
[421086456,1777005065434,-151.0,0.00021918,2]
[421086457,1777005065445,-151.0,0.00021918,2]
[421086458,1777005065455,-151.0,0.00021918,2]
[421086459,1777005065464,-151.0,0.00021918,2]
[421086460,1777005065474,-151.0,0.00021918,2]
[421086461,1777005065484,-151.0,0.00021918,2]
[421086462,1777005065493,-151.0,0.00021918,2]
[421086463,1777005065502,-292.417205,0.00021918,2]
[421086464,1777005065511,-339.36151,0.00021918,2]
[421086465,1777005065521,-339.36151,0.00021918,2]
[421086466,1777005065530,-339.36151,0.00021918,2]
[421086467,1777005065539,-339.36151,0.00021918,2]
[421086468,1777005065548,-339.36151,0.00021918,2]
[421086469,1777005065558,-339.36151,0.00021918,2]
[421086470,1777005065567,-339.36151,0.00021918,2]
[421086471,1777005065576,-339.36151,0.00021918,2]
[421086472,1777005065586,-339.36151,0.00021918,2]
[421086473,1777005065595,-339.36151,0.00021918,2]
[421086474,1777005065604,-339.36151,0.00021918,2]
[421086475,1777005065613,-339.36151,0.00021918,2]
[421086476,1777005065623,-339.36151,0.00021918,2]
[421086477,1777005065634,-339.36151,0.00021918,2]
[421086478,1777005065643,-339.36151,0.00021918,2]
[421086479,1777005065652,-339.36151,0.00021918,2]
[421086480,1777005065661,-339.36151,0.00021918,2]
[421086481,1777005065670,-339.36151,0.00021918,2]
[421086482,1777005065680,-339.36151,0.00021918,2]
[421086483,1777005065690,-339.361511,0.00021918,2]
[421086484,1777005065700,-166.0,0.00021918,2]
[421086485,1777005065711,-650.0,0.00021918,2]
[421086486,1777005065721,-166.0,0.00021918,2]
[421086487,1777005065733,-423.82496375,0.00021918,2]
[421086488,1777005065744,-166.0,0.00021918,2]
[421086489,1777005065753,-480.1793156,0.00021918,10]
[421086490,1777005065764,-230.09519341,0.00021918,2]
[421086491,1777005065774,-500.0,0.00021918,120]
[421086492,1777005065784,-150.0,0.00021918,2]
[421086493,1777005065793,-150.0,0.00021918,2]
[421086494,1777005065803,-150.0,0.00021918,2]
[421086495,1777005065812,-150.0,0.00021918,2]
[421086496,1777005065822,-150.0,0.00021918,2]
[421086497,1777005065831,-150.0,0.00021918,2]
[421086498,1777005065840,-150.0,0.00021918,2]
[421086499,1777005065850,-150.0,0.00021918,2]
[421086500,1777005065859,-150.0,0.00021918,2]
[421086501,1777005065869,-150.0,0.00021918,2]
[421086502,1777005065879,-150.0,0.00021918,2]
[421086503,1777005066136,-150.0,0.00021918,2]
[421086504,1777005066146,-150.0,0.00021918,2]
[421086505,1777005066155,-150.0,0.00021918,2]
[421086506,1777005066166,-150.0,0.00021918,2]
[421086507,1777005066176,-150.0,0.00021918,2]
[421086508,1777005066185,-150.0,0.00021918,2]
[421086509,1777005066195,-150.0,0.00021918,2]
[421086510,1777005066204,-150.0,0.00021918,2]
[421086511,1777005066214,-150.0,0.00021918,2]
[421086512,1777005066223,-150.0,0.00021918,2]
[421086513,1777005066232,-152.32793255,0.00021918,2]
[421086514,1777005066242,-500.0,0.00021918,2]
[421086515,1777005066251,-500.0,0.00021918,2]
[421086516,1777005066261,-500.0,0.00021918,2]
[421086517,1777005066270,-500.0,0.00021918,2]
[421086518,1777005066281,-500.0,0.00021918,2]
[421086519,1777005066290,-500.0,0.00021918,2]
[421086520,1777005066300,-500.0,0.00021918,2]
[421086521,1777005066309,-492.18544111,0.00021918,2]